[Event "Late-Titled-Tuesday-Blitz-July-09-2024"]
[Site "Chess.com"]
[Date "2024.07.09"]
[Round "8"]
[White "jk13"]
[Black "Igor_Janik"]
[Result "0-1"]
[WhiteElo "2681"]
[BlackElo "2895"]
[TimeControl "180+1"]
[EndTime "15:29:24 PDT"]
[Termination "Igor_Janik won by checkmate"]

1. e4 {[%clk 0:02:05.8]} 1... c6 {[%clk 0:02:59.8]} 2. Nc3 {[%clk 0:02:05.5]}
2... d5 {[%clk 0:03:00.7]} 3. Nf3 {[%clk 0:02:06]} 3... Bg4 {[%clk 0:03:00.8]}
4. h3 {[%clk 0:02:04.8]} 4... Bxf3 {[%clk 0:03:01.3]} 5. Qxf3 {[%clk 0:02:05.4]}
5... e6 {[%clk 0:03:01.9]} 6. a3 {[%clk 0:02:06.1]} 6... Nf6 {[%clk 0:02:57.7]}
7. d3 {[%clk 0:02:06.7]} 7... g6 {[%clk 0:02:57.1]} 8. g3 {[%clk 0:02:07.2]}
8... Bg7 {[%clk 0:02:57.5]} 9. Bg2 {[%clk 0:02:07.8]} 9... O-O {[%clk
0:02:57.3]} 10. O-O {[%clk 0:02:08.5]} 10... Nbd7 {[%clk 0:02:57.7]} 11. Qe2
{[%clk 0:02:09.1]} 11... Qb6 {[%clk 0:02:54.4]} 12. Kh1 {[%clk 0:02:09]} 12...
Qa6 {[%clk 0:02:52.8]} 13. Qe1 {[%clk 0:02:05.5]} 13... dxe4 {[%clk 0:02:48.1]}
14. dxe4 {[%clk 0:02:05.2]} 14... Rfd8 {[%clk 0:02:48.1]} 15. Bg5 {[%clk
0:02:03.5]} 15... h6 {[%clk 0:02:47.9]} 16. Be3 {[%clk 0:02:04.1]} 16... Nb6
{[%clk 0:02:40.2]} 17. f4 {[%clk 0:01:59.8]} 17... Rd7 {[%clk 0:02:34.2]} 18.
Rd1 {[%clk 0:01:45.3]} 18... Rad8 {[%clk 0:02:34.1]} 19. Rxd7 {[%clk 0:01:44.3]}
19... Rxd7 {[%clk 0:02:35]} 20. g4 {[%clk 0:01:36.7]} 20... Nc4 {[%clk
0:02:25.4]} 21. Bc1 {[%clk 0:01:36.8]} 21... e5 {[%clk 0:02:25.2]} 22. f5 {[%clk
0:01:28.8]} 22... g5 {[%clk 0:02:05.1]} 23. Bf3 {[%clk 0:01:28]} 23... Ne8
{[%clk 0:02:01.1]} 24. h4 {[%clk 0:01:26.2]} 24... f6 {[%clk 0:02:00.5]} 25. Be2
{[%clk 0:01:24.5]} 25... b5 {[%clk 0:02:00.5]} 26. Rf3 {[%clk 0:01:18.8]} 26...
Bf8 {[%clk 0:01:56.4]} 27. Rd3 {[%clk 0:01:18]} 27... Rxd3 {[%clk 0:01:56.2]}
28. cxd3 {[%clk 0:01:17.8]} 28... Ncd6 {[%clk 0:01:54.1]} 29. Be3 {[%clk
0:01:18.1]} 29... Qb7 {[%clk 0:01:48.9]} 30. b4 {[%clk 0:01:15.8]} 30... Nf7
{[%clk 0:01:36.8]} 31. Bd1 {[%clk 0:01:14.1]} 31... Qd7 {[%clk 0:01:36.4]} 32.
hxg5 {[%clk 0:01:03.4]} 32... Nxg5 {[%clk 0:01:32.4]} 33. Bb3+ {[%clk
0:01:03.1]} 33... Kh7 {[%clk 0:01:27.5]} 34. Qe2 {[%clk 0:01:02.4]} 34... Be7
{[%clk 0:01:24.3]} 35. Kg2 {[%clk 0:00:58.2]} 35... Bd8 {[%clk 0:01:24.4]} 36.
Nd1 {[%clk 0:00:33.3]} 36... Bb6 {[%clk 0:01:18.1]} 37. Bxb6 {[%clk 0:00:32.1]}
37... axb6 {[%clk 0:01:19]} 38. Qe3 {[%clk 0:00:32.5]} 38... Ng7 {[%clk
0:01:12.2]} 39. Nf2 {[%clk 0:00:31]} 39... Qd8 {[%clk 0:01:10.5]} 40. Nh3 {[%clk
0:00:29.4]} 40... Nxh3 {[%clk 0:01:05.3]} 41. Kxh3 {[%clk 0:00:30.3]} 41... Ne8
{[%clk 0:00:53.3]} 42. Bf7 {[%clk 0:00:26.3]} 42... Nd6 {[%clk 0:00:49.4]} 43.
Be6 {[%clk 0:00:25]} 43... Nb7 {[%clk 0:00:43.2]} 44. Kg3 {[%clk 0:00:22.4]}
44... Kg7 {[%clk 0:00:43.6]} 45. Kf3 {[%clk 0:00:22.1]} 45... Qd6 {[%clk
0:00:22.5]} 46. Ke2 {[%clk 0:00:20.3]} 46... Qc7 {[%clk 0:00:18.9]} 47. Qh3
{[%clk 0:00:19]} 47... Nd8 {[%clk 0:00:16.2]} 48. Bb3 {[%clk 0:00:18]} 48... c5
{[%clk 0:00:14]} 49. Qh5 {[%clk 0:00:13.3]} 49... c4 {[%clk 0:00:14.4]} 50. Bc2
{[%clk 0:00:12]} 50... Qd6 {[%clk 0:00:10.8]} 51. Qe8 {[%clk 0:00:11.4]} 51...
Nc6 {[%clk 0:00:03.7]} 52. Qc8 {[%clk 0:00:10.8]} 52... Nd4+ {[%clk 0:00:03.9]}
53. Kd2 {[%clk 0:00:09.9]} 53... Nf3+ {[%clk 0:00:04.1]} 54. Ke3 {[%clk
0:00:07.1]} 54... Ng5 {[%clk 0:00:04.5]} 55. Qb7+ {[%clk 0:00:06.7]} 55... Nf7
{[%clk 0:00:04.6]} 56. Qd5 {[%clk 0:00:06.8]} 56... Qxd5 {[%clk 0:00:03.7]} 57.
exd5 {[%clk 0:00:07.7]} 57... Nd6 {[%clk 0:00:04.2]} 58. a4 {[%clk 0:00:07.7]}
58... cxd3 {[%clk 0:00:04.1]} 59. Kxd3 {[%clk 0:00:07.1]} 59... bxa4 {[%clk
0:00:04.5]} 60. Bxa4 {[%clk 0:00:08]} 60... h5 {[%clk 0:00:04.7]} 61. gxh5
{[%clk 0:00:06.1]} 61... Nxf5 {[%clk 0:00:04.9]} 62. Bd1 {[%clk 0:00:04.7]}
62... Nd6 {[%clk 0:00:05.5]} 63. Bf3 {[%clk 0:00:04.4]} 63... Kh6 {[%clk
0:00:06.2]} 64. Be2 {[%clk 0:00:03.5]} 64... Kg5 {[%clk 0:00:06.3]} 65. Ke3
{[%clk 0:00:04.4]} 65... f5 {[%clk 0:00:06.8]} 66. Kf3 {[%clk 0:00:04.8]} 66...
Kxh5 {[%clk 0:00:04.4]} 67. Ke3+ {[%clk 0:00:05.7]} 67... Kg5 {[%clk 0:00:05]}
68. Kd3 {[%clk 0:00:06.6]} 68... Kf6 {[%clk 0:00:05.6]} 69. Ke3 {[%clk
0:00:06.7]} 69... Kg5 {[%clk 0:00:05.6]} 70. Kd3 {[%clk 0:00:07.6]} 70... Kf4
{[%clk 0:00:05.2]} 71. Bf1 {[%clk 0:00:08.5]} 71... Nb5 {[%clk 0:00:04.4]} 72.
Kc4 {[%clk 0:00:08.5]} 72... Nd6+ {[%clk 0:00:04.6]} 73. Kd3 {[%clk 0:00:09.4]}
73... Kf3 {[%clk 0:00:04.9]} 74. Bh3 {[%clk 0:00:09.3]} 74... e4+ {[%clk
0:00:05.2]} 75. Kd4 {[%clk 0:00:09.1]} 75... f4 {[%clk 0:00:05.7]} 76. Bf1
{[%clk 0:00:08.8]} 76... e3 {[%clk 0:00:05.9]} 77. Kd3 {[%clk 0:00:09.5]} 77...
Kf2 {[%clk 0:00:06.4]} 78. Bh3 {[%clk 0:00:09.4]} 78... f3 {[%clk 0:00:07.1]}
79. Bf1 {[%clk 0:00:09.2]} 79... e2 {[%clk 0:00:08]} 80. Bxe2 {[%clk 0:00:09.5]}
80... fxe2 {[%clk 0:00:08.9]} 81. Kd4 {[%clk 0:00:10.2]} 81... e1=Q {[%clk
0:00:09.2]} 82. b5 {[%clk 0:00:09.9]} 82... Qe4+ {[%clk 0:00:09.3]} 83. Kc3
{[%clk 0:00:10.4]} 83... Qc4+ {[%clk 0:00:09.9]} 84. Kd2 {[%clk 0:00:10.7]}
84... Kf3 {[%clk 0:00:10.4]} 85. Ke1 {[%clk 0:00:10.9]} 85... Ke3 {[%clk
0:00:10.6]} 86. Kd1 {[%clk 0:00:10.6]} 86... Qc5 {[%clk 0:00:11.3]} 87. Ke1
{[%clk 0:00:10.3]} 87... Qc1# {[%clk 0:00:12.2]} 0-1

[Event "Late-Titled-Tuesday-Blitz-July-09-2024"]
[Site "Chess.com"]
[Date "2024.07.09"]
[Round "8"]
[White "WPWPWP-2015"]
[Black "Statham_01"]
[Result "1/2-1/2"]
[WhiteElo "2529"]
[BlackElo "2669"]
[TimeControl "180+1"]
[EndTime "15:30:35 PDT"]
[Termination "Game drawn by repetition"]

1. d4 {[%clk 0:03:00.9]} 1... d5 {[%clk 0:02:59.5]} 2. c4 {[%clk 0:03:00.4]}
2... Nc6 {[%clk 0:03:00.1]} 3. cxd5 {[%clk 0:02:59.9]} 3... Qxd5 {[%clk
0:03:01]} 4. e3 {[%clk 0:03:00]} 4... e5 {[%clk 0:03:01]} 5. Nc3 {[%clk
0:02:59.8]} 5... Bb4 {[%clk 0:03:01.6]} 6. a3 {[%clk 0:02:51.2]} 6... Bxc3+
{[%clk 0:03:01.7]} 7. bxc3 {[%clk 0:02:51]} 7... Nf6 {[%clk 0:03:02.4]} 8. Nf3
{[%clk 0:02:50]} 8... e4 {[%clk 0:03:01.7]} 9. Nd2 {[%clk 0:02:49.7]} 9... O-O
{[%clk 0:03:00.2]} 10. Rb1 {[%clk 0:02:49.1]} 10... Qg5 {[%clk 0:02:56.6]} 11.
h4 {[%clk 0:02:48.2]} 11... Qg6 {[%clk 0:02:53.5]} 12. h5 {[%clk 0:02:47.6]}
12... Qg5 {[%clk 0:02:51.9]} 13. Rb5 {[%clk 0:02:46.4]} 13... Qh6 {[%clk
0:02:41.7]} 14. Be2 {[%clk 0:02:46.2]} 14... a6 {[%clk 0:02:40]} 15. Rc5 {[%clk
0:02:43.9]} 15... Nd7 {[%clk 0:02:26]} 16. Rd5 {[%clk 0:02:41.2]} 16... Ne7
{[%clk 0:02:15.6]} 17. Ra5 {[%clk 0:02:38.4]} 17... b6 {[%clk 0:02:00.2]} 18.
Ra4 {[%clk 0:02:36.2]} 18... Nd5 {[%clk 0:01:44.5]} 19. Qb3 {[%clk 0:02:27.7]}
19... Bb7 {[%clk 0:01:40.3]} 20. c4 {[%clk 0:02:18.6]} 20... Ne7 {[%clk
0:01:28.1]} 21. Rb4 {[%clk 0:02:15.5]} 21... c5 {[%clk 0:01:21.9]} 22. Ra4
{[%clk 0:02:12.3]} 22... Bc6 {[%clk 0:01:18.6]} 23. Rh4 {[%clk 0:01:53.9]} 23...
Nf5 {[%clk 0:01:09]} 24. Rf4 {[%clk 0:01:50.1]} 24... Nxd4 {[%clk 0:01:05.8]}
25. exd4 {[%clk 0:01:07.1]} 25... Qxf4 {[%clk 0:01:04.5]} 26. d5 {[%clk
0:01:06.3]} 26... Bxa4 {[%clk 0:01:04.3]} 27. Qxa4 {[%clk 0:01:06.1]} 27... Ne5
{[%clk 0:00:57.3]} 28. Qc2 {[%clk 0:01:03.4]} 28... e3 {[%clk 0:00:37.8]} 29.
fxe3 {[%clk 0:00:54.8]} 29... Qh4+ {[%clk 0:00:36.8]} 30. Kd1 {[%clk 0:00:48.1]}
30... Rad8 {[%clk 0:00:28.5]} 31. Bb2 {[%clk 0:00:40.7]} 31... Ng4 {[%clk
0:00:22.4]} 32. Qc3 {[%clk 0:00:32.9]} 32... f6 {[%clk 0:00:17.1]} 33. Nf1
{[%clk 0:00:14.8]} 33... Kh8 {[%clk 0:00:15.8]} 34. Bc1 {[%clk 0:00:14.1]} 34...
b5 {[%clk 0:00:15.3]} 35. Kc2 {[%clk 0:00:10]} 35... Ne5 {[%clk 0:00:13]} 36.
cxb5 {[%clk 0:00:08.7]} 36... axb5 {[%clk 0:00:12.8]} 37. Bxb5 {[%clk
0:00:03.5]} 37... Rxd5 {[%clk 0:00:10.3]} 38. Nd2 {[%clk 0:00:03.1]} 38... Rfd8
{[%clk 0:00:09.8]} 39. Nb3 {[%clk 0:00:01]} 39... Qe4+ {[%clk 0:00:09.4]} 40.
Kb2 {[%clk 0:00:01]} 40... c4 {[%clk 0:00:09.9]} 41. Nd4 {[%clk 0:00:01]} 41...
Nd3+ {[%clk 0:00:07.2]} 42. Kc2 {[%clk 0:00:01.2]} 42... Nb4+ {[%clk 0:00:06.4]}
43. Kb2 {[%clk 0:00:01.5]} 43... Nd3+ {[%clk 0:00:06.7]} 44. Ka2 {[%clk
0:00:01.9]} 44... Nxc1+ {[%clk 0:00:06.9]} 45. Qxc1 {[%clk 0:00:02.3]} 45...
Rxd4 {[%clk 0:00:07.4]} 46. exd4 {[%clk 0:00:02.8]} 46... Rxd4 {[%clk
0:00:07.1]} 47. Ba4 {[%clk 0:00:02.9]} 47... Qe2+ {[%clk 0:00:07.1]} 48. Ka1
{[%clk 0:00:03]} 48... Qe5 {[%clk 0:00:06.7]} 49. Qb2 {[%clk 0:00:03]} 49... h6
{[%clk 0:00:04.2]} 50. Ka2 {[%clk 0:00:03.1]} 50... Qd5 {[%clk 0:00:03.7]} 51.
Qb8+ {[%clk 0:00:02.8]} 51... Qd8 {[%clk 0:00:04.4]} 52. Qxd8+ {[%clk
0:00:02.8]} 52... Rxd8 {[%clk 0:00:04.7]} 53. Kb2 {[%clk 0:00:03.4]} 53... Rd2+
{[%clk 0:00:05.2]} 54. Kc3 {[%clk 0:00:03.6]} 54... Rxg2 {[%clk 0:00:06.1]} 55.
Kxc4 {[%clk 0:00:04]} 55... Rg4+ {[%clk 0:00:06.7]} 56. Kb5 {[%clk 0:00:04.1]}
56... Rg5+ {[%clk 0:00:07.3]} 57. Kb6 {[%clk 0:00:03.2]} 57... Rxh5 {[%clk
0:00:08.2]} 58. Bb5 {[%clk 0:00:03.4]} 58... Re5 {[%clk 0:00:06.9]} 59. a4
{[%clk 0:00:03.7]} 59... h5 {[%clk 0:00:05.9]} 60. a5 {[%clk 0:00:04]} 60...
Re6+ {[%clk 0:00:06]} 61. Bc6 {[%clk 0:00:03.8]} 61... Re3 {[%clk 0:00:04.4]}
62. a6 {[%clk 0:00:04]} 62... Ra3 {[%clk 0:00:04.4]} 63. a7 {[%clk 0:00:04.3]}
63... g5 {[%clk 0:00:03.8]} 64. Bb7 {[%clk 0:00:04]} 64... Rxa7 {[%clk 0:00:03]}
65. Kxa7 {[%clk 0:00:04.5]} 65... g4 {[%clk 0:00:02]} 66. Kb6 {[%clk 0:00:03.9]}
66... h4 {[%clk 0:00:02.5]} 67. Kc5 {[%clk 0:00:02.8]} 67... h3 {[%clk
0:00:02.7]} 68. Kd4 {[%clk 0:00:02.5]} 68... g3 {[%clk 0:00:02.7]} 69. Ke3
{[%clk 0:00:02.6]} 69... f5 {[%clk 0:00:02.2]} 70. Bf3 {[%clk 0:00:01.8]} 70...
f4+ {[%clk 0:00:02.4]} 71. Ke2 {[%clk 0:00:01.9]} 71... Kg7 {[%clk 0:00:02.9]}
72. Kf1 {[%clk 0:00:01.9]} 72... Kf6 {[%clk 0:00:03.5]} 73. Bg4 {[%clk
0:00:02.3]} 73... h2 {[%clk 0:00:02.2]} 74. Kg2 {[%clk 0:00:02.5]} 74... Kg5
{[%clk 0:00:03.1]} 75. Bf3 {[%clk 0:00:02.8]} 75... Kh4 {[%clk 0:00:03.4]} 76.
Be4 {[%clk 0:00:03]} 76... Kg4 {[%clk 0:00:03.2]} 77. Bf3+ {[%clk 0:00:03.5]}
77... Kf5 {[%clk 0:00:03.9]} 78. Bc6 {[%clk 0:00:03.8]} 78... Ke5 {[%clk
0:00:04.5]} 79. Bb7 {[%clk 0:00:04.1]} 79... Kd4 {[%clk 0:00:05.4]} 80. Kh1
{[%clk 0:00:04.2]} 80... Ke3 {[%clk 0:00:05.2]} 81. Bc6 {[%clk 0:00:04.3]} 81...
Kf2 {[%clk 0:00:03.7]} 82. Bd5 {[%clk 0:00:04.2]} 82... Ke2 {[%clk 0:00:03.9]}
83. Bf3+ {[%clk 0:00:04.1]} 83... Ke1 {[%clk 0:00:03.5]} 84. Be4 {[%clk
0:00:04.4]} 84... Kf2 {[%clk 0:00:02.8]} 85. Bd5 {[%clk 0:00:05.3]} 85... Ke1
{[%clk 0:00:01.6]} 86. Bc6 {[%clk 0:00:05.8]} 86... Kd2 {[%clk 0:00:02.5]} 87.
Bb7 {[%clk 0:00:06.5]} 87... Ke3 {[%clk 0:00:03.4]} 88. Ba8 {[%clk 0:00:07.3]}
88... Ke2 {[%clk 0:00:03.8]} 89. Bc6 {[%clk 0:00:07.5]} 89... Kf1 {[%clk
0:00:04.6]} 90. Bg2+ {[%clk 0:00:07.3]} 90... Kf2 {[%clk 0:00:04.9]} 91. Be4
{[%clk 0:00:08.2]} 91... Ke3 {[%clk 0:00:04.5]} 92. Bd5 {[%clk 0:00:08.6]} 92...
Ke2 {[%clk 0:00:04.7]} 93. Bf3+ {[%clk 0:00:09]} 93... Kd3 {[%clk 0:00:05]} 94.
Bd5 {[%clk 0:00:09.1]} 94... Kd4 {[%clk 0:00:05.7]} 95. Bc6 {[%clk 0:00:09.6]}
95... Ke5 {[%clk 0:00:06.4]} 96. Bb7 {[%clk 0:00:10]} 96... Kf5 {[%clk
0:00:07.1]} 97. Ba8 {[%clk 0:00:10.6]} 97... Kg4 {[%clk 0:00:07.7]} 98. Bf3+
{[%clk 0:00:10.7]} 98... Kh3 {[%clk 0:00:07.6]} 99. Bg2+ {[%clk 0:00:10.8]}
99... Kh4 {[%clk 0:00:08.2]} 100. Bf3 {[%clk 0:00:11.5]} 100... Kh3 {[%clk
0:00:08]} 101. Be4 {[%clk 0:00:12]} 101... Kg4 {[%clk 0:00:03.5]} 102. Bf3+
{[%clk 0:00:12.4]} 102... Kf5 {[%clk 0:00:03.4]} 103. Bd5 {[%clk 0:00:12.1]}
103... Ke5 {[%clk 0:00:03.2]} 104. Bc6 {[%clk 0:00:12.8]} 104... Kd4 {[%clk
0:00:03.5]} 105. Bb7 {[%clk 0:00:13.3]} 105... Ke3 {[%clk 0:00:03.5]} 1/2-1/2

[Event "Late-Titled-Tuesday-Blitz-July-09-2024"]
[Site "Chess.com"]
[Date "2024.07.09"]
[Round "9"]
[White "KebabJangles"]
[Black "VitorBronson"]
[Result "1-0"]
[WhiteElo "2392"]
[BlackElo "2499"]
[TimeControl "180+1"]
[EndTime "15:39:19 PDT"]
[Termination "KebabJangles won by resignation"]

1. d4 {[%clk 0:03:00.9]} 1... Nf6 {[%clk 0:02:55.4]} 2. c4 {[%clk 0:02:59.5]}
2... g6 {[%clk 0:02:55.8]} 3. g3 {[%clk 0:02:58.8]} 3... Bg7 {[%clk 0:02:56.2]}
4. Bg2 {[%clk 0:02:59.4]} 4... O-O {[%clk 0:02:57.1]} 5. Nc3 {[%clk 0:02:59.6]}
5... d6 {[%clk 0:02:56.7]} 6. Nf3 {[%clk 0:02:59.8]} 6... c5 {[%clk 0:02:52]} 7.
d5 {[%clk 0:02:58.9]} 7... e6 {[%clk 0:02:51.5]} 8. O-O {[%clk 0:02:58.7]} 8...
exd5 {[%clk 0:02:51.7]} 9. cxd5 {[%clk 0:02:58.6]} 9... Na6 {[%clk 0:02:47.6]}
10. Bf4 {[%clk 0:02:56.3]} 10... Nc7 {[%clk 0:02:47.4]} 11. a4 {[%clk
0:02:56.1]} 11... b6 {[%clk 0:02:46.5]} 12. e4 {[%clk 0:02:55.5]} 12... Rb8
{[%clk 0:02:43.5]} 13. e5 {[%clk 0:02:52.6]} 13... Nfe8 {[%clk 0:02:37.9]} 14.
exd6 {[%clk 0:02:50.9]} 14... Nxd6 {[%clk 0:02:37.9]} 15. Ne5 {[%clk 0:02:51.2]}
15... Bb7 {[%clk 0:02:33.1]} 16. Nc6 {[%clk 0:02:50.6]} 16... Bxc6 {[%clk
0:02:32.4]} 17. dxc6 {[%clk 0:02:51.5]} 17... Nde8 {[%clk 0:02:25.4]} 18. Re1
{[%clk 0:02:43.9]} 18... Bd4 {[%clk 0:02:23.9]} 19. Nb5 {[%clk 0:02:41.5]} 19...
a6 {[%clk 0:02:19.6]} 20. Rxe8 {[%clk 0:02:36.2]} 20... Rxe8 {[%clk 0:02:05.9]}
21. Nxc7 {[%clk 0:02:34.5]} 21... g5 {[%clk 0:01:58.2]} 22. Nxe8 {[%clk
0:02:32.7]} 22... gxf4 {[%clk 0:01:58.1]} 23. c7 {[%clk 0:02:32.8]} 23... Qxe8
{[%clk 0:01:58.1]} 24. cxb8=Q {[%clk 0:02:32.9]} 24... Qxb8 {[%clk 0:01:58]} 25.
Qg4+ {[%clk 0:02:28.9]} 1-0

[Event "Late-Titled-Tuesday-Blitz-July-09-2024"]
[Site "Chess.com"]
[Date "2024.07.09"]
[Round "9"]
[White "artin10862"]
[Black "Ganziitoo"]
[Result "1-0"]
[WhiteElo "2920"]
[BlackElo "2421"]
[TimeControl "180+1"]
[EndTime "15:40:00 PDT"]
[Termination "artin10862 won by resignation"]

1. d4 {[%clk 0:03:00.9]} 1... d5 {[%clk 0:02:56.7]} 2. c4 {[%clk 0:02:50.8]}
2... e6 {[%clk 0:02:51.9]} 3. cxd5 {[%clk 0:02:50.2]} 3... exd5 {[%clk
0:02:52.8]} 4. Nc3 {[%clk 0:02:50]} 4... c6 {[%clk 0:02:52.5]} 5. Nf3 {[%clk
0:02:47.9]} 5... Nf6 {[%clk 0:02:49.7]} 6. Qc2 {[%clk 0:02:43.2]} 6... g6 {[%clk
0:02:48.5]} 7. Bg5 {[%clk 0:02:40.2]} 7... Be7 {[%clk 0:02:43.7]} 8. e3 {[%clk
0:02:36.9]} 8... Bf5 {[%clk 0:02:44.2]} 9. Bd3 {[%clk 0:02:36.4]} 9... Bxd3
{[%clk 0:02:43.9]} 10. Qxd3 {[%clk 0:02:37.3]} 10... O-O {[%clk 0:02:44.5]} 11.
O-O-O {[%clk 0:02:19.1]} 11... Re8 {[%clk 0:02:42]} 12. Qc2 {[%clk 0:02:14.1]}
12... Na6 {[%clk 0:02:19.6]} 13. Kb1 {[%clk 0:02:10.2]} 13... Rc8 {[%clk
0:01:43.6]} 14. h4 {[%clk 0:02:08.2]} 14... Nb4 {[%clk 0:01:29.7]} 15. Qb3
{[%clk 0:02:07.2]} 15... b5 {[%clk 0:01:24]} 16. Bxf6 {[%clk 0:02:06.3]} 16...
Bxf6 {[%clk 0:01:24]} 17. Qxb4 {[%clk 0:02:05.7]} 1-0

[Event "Late-Titled-Tuesday-Blitz-July-09-2024"]
[Site "Chess.com"]
[Date "2024.07.09"]
[Round "9"]
[White "betta2004"]
[Black "ZakinIlay2306"]
[Result "0-1"]
[WhiteElo "2475"]
[BlackElo "2324"]
[TimeControl "180+1"]
[EndTime "15:40:18 PDT"]
[Termination "ZakinIlay2306 won by resignation"]

1. Nf3 {[%clk 0:02:26.5]} 1... c5 {[%clk 0:02:58.3]} 2. e3 {[%clk 0:02:27.4]}
2... Nf6 {[%clk 0:02:55.7]} 3. b3 {[%clk 0:02:28.3]} 3... g6 {[%clk 0:02:55.6]}
4. Bb2 {[%clk 0:02:26.9]} 4... Bg7 {[%clk 0:02:56.1]} 5. d4 {[%clk 0:02:27]}
5... cxd4 {[%clk 0:02:55.2]} 6. exd4 {[%clk 0:02:27.9]} 6... O-O {[%clk
0:02:55.2]} 7. Nbd2 {[%clk 0:02:28.8]} 7... d5 {[%clk 0:02:54.7]} 8. Bd3 {[%clk
0:02:29.5]} 8... Nc6 {[%clk 0:02:53.3]} 9. O-O {[%clk 0:02:29.9]} 9... Bg4
{[%clk 0:02:52.4]} 10. h3 {[%clk 0:02:30]} 10... Bf5 {[%clk 0:02:43.8]} 11. Ne5
{[%clk 0:02:29.7]} 11... Bxd3 {[%clk 0:02:41]} 12. Nxd3 {[%clk 0:02:26.9]} 12...
Ne4 {[%clk 0:02:39.4]} 13. Nxe4 {[%clk 0:02:26.2]} 13... dxe4 {[%clk 0:02:40.3]}
14. Ne5 {[%clk 0:02:26.3]} 14... Nxe5 {[%clk 0:02:32.6]} 15. dxe5 {[%clk
0:02:27.2]} 15... Qc7 {[%clk 0:02:31]} 16. Qd4 {[%clk 0:02:26.4]} 16... Qxc2
{[%clk 0:02:27.7]} 17. Rac1 {[%clk 0:02:26.1]} 17... Qd3 {[%clk 0:02:26]} 18.
Qxd3 {[%clk 0:02:24.2]} 18... exd3 {[%clk 0:02:26.9]} 19. Rfd1 {[%clk
0:02:24.8]} 19... Rfd8 {[%clk 0:02:24.5]} 20. Rc7 {[%clk 0:02:24.8]} 20... e6
{[%clk 0:02:17.9]} 21. Rxb7 {[%clk 0:02:22.9]} 21... Rac8 {[%clk 0:02:16.4]} 22.
Ba3 {[%clk 0:02:17.7]} 22... d2 {[%clk 0:02:08.8]} 23. f4 {[%clk 0:02:09.6]}
23... Bh6 {[%clk 0:02:01.1]} 24. g3 {[%clk 0:02:07.4]} 24... g5 {[%clk
0:02:01.4]} 25. Be7 {[%clk 0:02:02.5]} 25... Rc1 {[%clk 0:01:38.1]} 26. Bxd8
{[%clk 0:02:00.5]} 26... Rxd1+ {[%clk 0:01:37.8]} 27. Kf2 {[%clk 0:01:59.1]}
27... Rf1+ {[%clk 0:01:37]} 28. Kxf1 {[%clk 0:01:58.9]} 28... d1=Q+ {[%clk
0:01:37.1]} 29. Kf2 {[%clk 0:01:59]} 29... Qxd8 {[%clk 0:01:37.2]} 0-1

[Event "Late-Titled-Tuesday-Blitz-July-09-2024"]
[Site "Chess.com"]
[Date "2024.07.09"]
[Round "9"]
[White "Nf3c5"]
[Black "RebecaJimnz"]
[Result "1-0"]
[WhiteElo "2631"]
[BlackElo "2304"]
[TimeControl "180+1"]
[EndTime "15:40:58 PDT"]
[Termination "Nf3c5 won by resignation"]

1. Nf3 {[%clk 0:03:00.9]} 1... d5 {[%clk 0:02:59.4]} 2. g3 {[%clk 0:03:00.2]}
2... Nf6 {[%clk 0:02:58.9]} 3. Bg2 {[%clk 0:03:00.4]} 3... e6 {[%clk 0:02:59.1]}
4. O-O {[%clk 0:03:00.5]} 4... Be7 {[%clk 0:02:59.2]} 5. c4 {[%clk 0:02:59.4]}
5... O-O {[%clk 0:02:59.4]} 6. b3 {[%clk 0:02:53.4]} 6... c5 {[%clk 0:02:53.4]}
7. cxd5 {[%clk 0:02:50.2]} 7... exd5 {[%clk 0:02:53.3]} 8. d4 {[%clk 0:02:49.5]}
8... b6 {[%clk 0:02:52.2]} 9. Bb2 {[%clk 0:02:31.5]} 9... Bb7 {[%clk 0:02:51.2]}
10. Nc3 {[%clk 0:02:26.2]} 10... c4 {[%clk 0:02:46.3]} 11. Ne5 {[%clk
0:02:24.3]} 11... cxb3 {[%clk 0:02:27.5]} 12. Qxb3 {[%clk 0:02:20]} 12... Nc6
{[%clk 0:02:13.2]} 13. Nxd5 {[%clk 0:02:03.7]} 13... Na5 {[%clk 0:00:53.1]} 14.
Nxe7+ {[%clk 0:01:37.7]} 14... Qxe7 {[%clk 0:00:54]} 15. Qa3 {[%clk 0:01:35.5]}
15... Bxg2 {[%clk 0:00:51.6]} 16. Qxe7 {[%clk 0:01:34.8]} 1-0

[Event "Late-Titled-Tuesday-Blitz-July-09-2024"]
[Site "Chess.com"]
[Date "2024.07.09"]
[Round "9"]
[White "Matalon"]
[Black "VirtualCoach"]
[Result "1-0"]
[WhiteElo "2470"]
[BlackElo "2303"]
[TimeControl "180+1"]
[EndTime "15:41:24 PDT"]
[Termination "Matalon won by resignation"]

1. e4 {[%clk 0:03:00.9]} 1... c5 {[%clk 0:02:58]} 2. Nf3 {[%clk 0:02:59.2]} 2...
d6 {[%clk 0:02:58.3]} 3. d4 {[%clk 0:02:56.5]} 3... cxd4 {[%clk 0:02:59.2]} 4.
Nxd4 {[%clk 0:02:56.5]} 4... Nf6 {[%clk 0:02:59.9]} 5. Nc3 {[%clk 0:02:56.5]}
5... a6 {[%clk 0:03:00.4]} 6. Be2 {[%clk 0:02:56.5]} 6... e5 {[%clk 0:03:00.6]}
7. Nb3 {[%clk 0:02:55.8]} 7... Be6 {[%clk 0:02:59.3]} 8. O-O {[%clk 0:02:55]}
8... Be7 {[%clk 0:02:58.3]} 9. Be3 {[%clk 0:02:55.4]} 9... O-O {[%clk
0:02:56.9]} 10. Qd2 {[%clk 0:02:55.9]} 10... Nbd7 {[%clk 0:02:56.7]} 11. a4
{[%clk 0:02:54.5]} 11... Rc8 {[%clk 0:02:52.3]} 12. Rfd1 {[%clk 0:02:53.9]}
12... Qc7 {[%clk 0:02:51.9]} 13. f3 {[%clk 0:02:51.5]} 13... Rfd8 {[%clk
0:02:50.7]} 14. a5 {[%clk 0:02:48.9]} 14... Nc5 {[%clk 0:02:49.1]} 15. Nxc5
{[%clk 0:02:46.1]} 15... dxc5 {[%clk 0:02:49.3]} 16. Qe1 {[%clk 0:02:46.8]}
16... Qc6 {[%clk 0:02:41.9]} 17. Na4 {[%clk 0:02:40.5]} 17... Rxd1 {[%clk
0:02:38.4]} 18. Qxd1 {[%clk 0:02:36.2]} 18... Rd8 {[%clk 0:02:38.5]} 19. Qe1
{[%clk 0:02:35]} 19... Nd7 {[%clk 0:02:35.8]} 20. b3 {[%clk 0:02:29.2]} 20...
Rc8 {[%clk 0:02:32]} 21. c4 {[%clk 0:02:24.4]} 21... Bd8 {[%clk 0:02:31.4]} 22.
Nc3 {[%clk 0:02:23.9]} 22... b6 {[%clk 0:02:14.7]} 23. axb6 {[%clk 0:02:21.3]}
23... Qxb6 {[%clk 0:02:15.1]} 24. Bd1 {[%clk 0:02:18.6]} 24... Qb4 {[%clk
0:02:12.7]} 25. Bc2 {[%clk 0:02:17.3]} 25... Ba5 {[%clk 0:02:02.4]} 26. Bd2
{[%clk 0:02:12.1]} 26... Qb7 {[%clk 0:01:57.5]} 27. Rxa5 {[%clk 0:02:11]} 27...
Rd8 {[%clk 0:01:43.2]} 28. Nd5 {[%clk 0:02:08.6]} 28... Bxd5 {[%clk 0:01:43.1]}
29. exd5 {[%clk 0:02:09.5]} 29... Nb6 {[%clk 0:01:43.8]} 30. Qxe5 {[%clk
0:02:06.9]} 30... Qd7 {[%clk 0:01:41.3]} 31. Bc3 {[%clk 0:02:05.3]} 31... f6
{[%clk 0:01:40.9]} 32. Qe4 {[%clk 0:02:05.4]} 32... Re8 {[%clk 0:01:41.1]} 33.
Qxh7+ {[%clk 0:02:05.1]} 33... Kf8 {[%clk 0:01:41.8]} 34. Bg6 {[%clk 0:01:55.1]}
34... Re3 {[%clk 0:01:30.5]} 35. Qh8+ {[%clk 0:01:54.2]} 35... Ke7 {[%clk
0:01:31]} 36. Qxg7+ {[%clk 0:01:54.1]} 36... Kd8 {[%clk 0:01:31.9]} 37. Bxf6+
{[%clk 0:01:53.1]} 37... Kc8 {[%clk 0:01:31.9]} 38. Rxc5+ {[%clk 0:01:51.6]}
38... Kb8 {[%clk 0:01:31.9]} 39. Qxd7 {[%clk 0:01:47.3]} 39... Nxd7 {[%clk
0:01:31.8]} 40. Rc6 {[%clk 0:01:44.6]} 40... Rxb3 {[%clk 0:01:30.2]} 41. Rxa6
{[%clk 0:01:43.4]} 41... Nc5 {[%clk 0:01:29.6]} 42. Rc6 {[%clk 0:01:41.9]} 42...
Nd3 {[%clk 0:01:28.6]} 43. h4 {[%clk 0:01:41]} 43... Nf4 {[%clk 0:01:22.9]} 44.
Be5+ {[%clk 0:01:40.8]} 1-0